bitfinex/quotes_SOLUSD_20250403
["timestamp","ask_amount","ask_price","bid_price","bid_amount"]
[1743702347784,8.7302,114.55,114.49,43.25644004]
[1743702347988,43.25644004,114.54,114.5,43.25644004]
[1743702348291,51.98734004,114.54,114.49,51.99074004]
[1743702348500,43.25644004,114.54,114.49,51.99074004]
[1743702348893,51.98734004,114.54,114.49,51.99074004]
[1743702349391,6.2749,114.57,114.51,43.25644004]
[1743702349570,43.25644004,114.56,114.51,43.25644004]
[1743702349765,43.25644004,114.56,114.51,51.57644004]
[1743702349995,43.25644004,114.54,114.51,8.32]
[1743702350286,51.98714004,114.54,114.51,8.32]
[1743702351084,51.98714004,114.54,114.5,8.7331]
[1743702351287,43.25644004,114.52,114.49,8.7343]
[1743702352090,43.25644004,114.52,114.48,17.0548]
[1743702352289,43.25644004,114.53,114.48,60.31124004]
[1743702352690,136.0,114.54,114.5,43.25644004]
[1743702352899,43.25644004,114.55,114.51,43.25644004]
[1743702353192,43.25644004,114.56,114.51,43.25644004]
[1743702354389,15.0035,114.57,114.52,8.732]
[1743702354589,8.7267,114.59,114.54,43.25644004]
[1743702354772,43.25644004,114.59,114.54,43.25644004]
[1743702354972,179.25644004,114.61,114.56,43.25644004]
[1743702355190,43.25644004,114.6,114.56,51.55644004]
[1743702356179,43.25644004,114.6,114.56,8.3]
[1743702356494,51.98254004,114.6,114.56,17.0287]
[1743702356681,43.25644004,114.6,114.56,60.28514004]
[1743702357590,51.98244004,114.6,114.56,17.0287]
[1743702357790,43.25644004,114.59,114.56,8.3]
[1743702357999,43.25644004,114.59,114.55,8.7293]
[1743702358586,51.98354004,114.59,114.55,8.7293]
[1743702359393,51.98314004,114.59,114.55,8.7293]
[1743702359797,43.25644004,114.56,114.5,21.833]
[1743702359980,6.0707,114.58,114.52,43.25644004]
[1743702360172,43.25644004,114.57,114.52,43.25644004]
[1743702360373,43.25644004,114.56,114.51,43.25644004]
[1743702360574,8.7305,114.54,114.5,51.99004004]
[1743702360774,51.98664004,114.55,114.5,51.99004004]
[1743702360989,51.98664004,114.55,114.49,10.3405]
[1743702360990,43.25644004,114.54,114.49,10.3405]
[1743702361175,43.25644004,114.54,114.49,53.59694004]
[1743702361589,43.25644004,114.54,114.5,43.25644004]
[1743702362295,43.25644004,114.55,114.5,43.25644004]
[1743702362498,51.98624004,114.55,114.5,43.25644004]
[1743702362885,51.98624004,114.55,114.5,51.98984004]
[1743702363386,43.25644004,114.54,114.5,51.98984004]
[1743702364197,43.25644004,114.54,114.49,53.59694004]
[1743702364394,43.25644004,114.53,114.49,10.3405]
[1743702364879,51.98794004,114.53,114.49,10.3405]
[1743702365501,43.25644004,114.52,114.48,8.7347]
[1743702365879,43.25644004,114.51,114.47,16.9956]
[1743702366076,43.25644004,114.5,114.47,8.26]
[1743702366284,43.25644004,114.52,114.47,60.25214004]
[1743702366706,43.25644004,114.51,114.47,60.25214004]
[1743702366884,63.25644004,114.54,114.47,8.26]
[1743702366885,51.99074004,114.5,114.47,8.26]
[1743702367078,51.99074004,114.5,114.46,1.5502]
[1743702367285,43.25644004,114.48,114.45,8.7372]
[1743702367801,43.25644004,114.47,114.43,44.83344004]
[1743702367979,43.25644004,114.47,114.43,10.3155]
[1743702368179,43.25644004,114.47,114.43,1.577]
[1743702368498,43.25644004,114.46,114.43,1.577]
[1743702368802,43.25644004,114.46,114.42,8.7392]
[1743702368984,43.25644004,114.45,114.41,8.7404]
[1743702369512,51.99384004,114.45,114.41,8.7404]
[1743702370417,43.25644004,114.45,114.41,8.7404]
[1743702371103,43.25644004,114.45,114.41,51.99684004]
[1743702371807,43.25644004,114.45,114.41,8.7404]
[1743702372007,43.25644004,114.43,114.41,8.7404]
[1743702372209,43.25644004,114.43,114.4,8.7408]
[1743702373110,43.25644004,114.42,114.39,8.742]
[1743702373310,43.25644004,114.42,114.38,326.94]
[1743702373900,43.25644004,114.43,114.38,378.93894004]
[1743702374083,43.25644004,114.43,114.39,61.9060889]
[1743702374283,136.0,114.44,114.41,43.25644004]
[1743702374488,43.25644004,114.46,114.41,43.25644004]
[1743702375307,43.25644004,114.46,114.42,8.7397]
[1743702375687,43.25644004,114.45,114.42,8.7397]
[1743702376505,43.25644004,114.44,114.41,8.7404]
[1743702377501,43.25644004,114.44,114.4,16.9609]
[1743702377502,43.25644004,114.43,114.4,16.9609]
[1743702377891,43.25644004,114.44,114.4,8.7409]
[1743702378511,136.0,114.45,114.4,8.7409]
[1743702378698,43.25644004,114.44,114.4,8.7409]
[1743702379109,43.25644004,114.44,114.4,51.99734004]
[1743702379313,136.0,114.45,114.4,51.99734004]
[1743702379503,43.25644004,114.44,114.4,8.7409]
[1743702379703,43.25644004,114.41,114.37,1.5649]
[1743702379896,43.25644004,114.38,114.34,1.6312]
[1743702380098,43.25644004,114.38,114.34,44.88764004]
[1743702380612,43.25644004,114.38,114.34,53.63304004]
[1743702380811,136.14216157,114.41,114.34,53.63304004]
[1743702380812,136.0,114.41,114.36,43.25644004]
[1743702381017,185.59894004,114.43,114.38,43.25644004]
[1743702381206,43.25644004,114.42,114.37,43.25644004]
[1743702381405,8.7397,114.42,114.38,8.7427]
[1743702381597,51.99614004,114.42,114.38,8.7427]
[1743702382005,43.25644004,114.41,114.38,8.7427]
[1743702382217,43.25644004,114.42,114.38,8.7427]
[1743702382516,136.0,114.44,114.39,43.25644004]
[1743702382690,43.25644004,114.44,114.4,43.25644004]
[1743702383105,151.16556157,114.46,114.4,43.25644004]
[1743702383299,187.99344004,114.46,114.41,43.25644004]
[1743702383498,179.25644004,114.46,114.42,8.7397]
[1743702383717,43.25644004,114.46,114.42,8.7397]
[1743702385015,43.25644004,114.45,114.42,8.7397]
[1743702385403,43.25644004,114.45,114.41,8.7404]
[1743702385610,43.25644004,114.43,114.4,10.377]
[1743702385814,43.25644004,114.42,114.39,8.7416]
[1743702386017,43.25644004,114.42,114.38,8.7427]
[1743702386321,43.25644004,114.41,114.37,18.5794]
[1743702386498,43.25644004,114.41,114.37,10.3594]
[1743702388003,43.25644004,114.41,114.37,53.61584004]
[1743702388522,43.39860161,114.42,114.37,53.61584004]
[1743702389223,43.25644004,114.41,114.37,53.61584004]
[1743702390727,51.99704004,114.41,114.37,10.3594]
[1743702391031,43.25644004,114.39,114.35,8.745]
[1743702391517,43.25644004,114.37,114.34,8.7454]
[1743702391899,43.25644004,114.38,114.34,52.00184004]
[1743702392314,43.25644004,114.39,114.35,43.25644004]
[1743702392621,144.88286157,114.41,114.34,8.7454]
[1743702392622,179.39860161,114.41,114.36,43.25644004]
[1743702392923,43.25644004,114.4,114.35,61.9060889]
[1743702393318,43.25644004,114.4,114.36,43.25644004]
[1743702393728,43.25644004,114.4,114.36,8.7438]
[1743702394619,43.25644004,114.39,114.36,8.7438]
[1743702394818,43.25644004,114.4,114.36,8.7438]
[1743702395402,136.0,114.41,114.36,60.14024004]
[1743702395607,179.25644004,114.41,114.36,82.00094004]
[1743702395813,15.21256157,114.43,114.37,43.25644004]
[1743702395814,43.25644004,114.42,114.37,43.25644004]
[1743702397033,43.25644004,114.41,114.36,82.00094004]
[1743702397207,43.25644004,114.39,114.36,16.8838]
[1743702397412,43.25644004,114.38,114.36,8.14]
[1743702397623,43.25644004,114.38,114.34,8.7455]
[1743702398231,43.25644004,114.39,114.34,52.00194004]
[1743702398629,43.25644004,114.39,114.34,73.86654004]
[1743702399421,51.99854004,114.39,114.34,73.86654004]
[1743702400622,43.25644004,114.38,114.34,52.00194004]
[1743702401543,51.99854004,114.39,114.34,52.00194004]
[1743702401749,43.25644004,114.39,114.34,52.00194004]
[1743702401945,136.0,114.42,114.35,61.9060889]
[1743702402250,43.25644004,114.41,114.37,18.64964886]
[1743702402452,43.25644004,114.41,114.36,43.25644004]
[1743702402453,43.25644004,114.4,114.36,43.25644004]
[1743702402622,43.25644004,114.4,114.35,18.64964886]
[1743702402825,43.25644004,114.4,114.35,61.9060889]
[1743702403246,43.25644004,114.4,114.35,18.64964886]
[1743702403549,43.25644004,114.4,114.35,61.9060889]
[1743702403744,43.25644004,114.4,114.36,8.7443]
[1743702404851,51.99784004,114.4,114.36,8.7443]
[1743702406864,50.90500788,114.4,114.36,8.7443]
[1743702407432,42.16360788,114.4,114.36,8.7443]
[1743702407937,8.7408,114.41,114.36,8.7443]
[1743702407938,27.11211907,114.39,114.36,8.7443]
[1743702408144,27.11211907,114.38,114.34,8.7454]
[1743702409046,27.11211907,114.37,114.33,8.7462]
[1743702409256,0.14216157,114.38,114.32,8.7473]
[1743702409257,27.11211907,114.36,114.32,8.7473]
[1743702409830,27.11211907,114.36,114.32,35.85941907]
[1743702410758,27.11211907,114.37,114.32,35.85941907]
[1743702411742,35.85591907,114.37,114.32,35.85941907]
[1743702412352,27.11211907,114.37,114.32,35.85941907]
[1743702414060,27.11211907,114.37,114.32,57.72781907]
[1743702414561,0.28432314,114.39,114.34,27.11211907]
[1743702414562,171.85441907,114.39,114.34,27.11211907]
[1743702414961,163.11211907,114.39,114.34,27.11211907]
[1743702415461,136.0,114.41,114.35,18.64964886]
[1743702415658,0.14216157,114.41,114.36,27.11211907]
[1743702415964,35.99498064,114.41,114.36,35.85581907]
[1743702417055,55.85221907,114.42,114.37,27.11211907]
[1743702417263,144.88146157,114.43,114.38,27.11211907]
[1743702417448,163.11211907,114.45,114.41,27.11211907]
[1743702417641,27.11211907,114.45,114.41,27.11211907]
[1743702417842,47.11211907,114.46,114.41,27.11211907]
[1743702418048,27.11211907,114.45,114.41,27.11211907]
[1743702418253,28.7367,114.46,114.41,27.11211907]
[1743702418254,55.84881907,114.46,114.41,27.11211907]
[1743702418463,27.11211907,114.45,114.41,27.11211907]
[1743702418844,28.7367,114.46,114.41,27.11211907]
[1743702419044,27.11211907,114.45,114.41,35.85221907]
[1743702419262,35.84971907,114.45,114.41,35.85221907]
[1743702419459,35.84971907,114.45,114.39,8.1]
[1743702419460,27.11211907,114.43,114.39,35.21211907]
[1743702419851,43.35415173,114.43,114.39,60.19575173]
[1743702420044,43.35415173,114.44,114.39,60.19575173]
[1743702420355,179.35415173,114.45,114.41,43.35415173]
[1743702420657,136.0,114.45,114.41,43.35415173]
[1743702421259,136.0,114.45,114.42,8.7397]
[1743702421563,21.8385,114.48,114.43,43.35415173]
[1743702421564,72.08985173,114.48,114.43,43.35415173]
[1743702422343,43.35415173,114.48,114.43,43.35415173]
[1743702422751,43.35415173,114.47,114.43,43.35415173]
[1743702423068,43.35415173,114.47,114.42,52.09385173]
[1743702423367,52.09045173,114.47,114.42,52.09385173]
[1743702424763,156.0,114.52,114.46,43.35415173]
[1743702424965,20.0,114.52,114.47,43.35415173]
[1743702425363,63.35415173,114.52,114.47,43.35415173]
[1743702425747,72.08645173,114.52,114.47,43.35415173]
[1743702425952,52.08645173,114.52,114.45,18.64964886]
[1743702426155,43.35415173,114.52,114.47,43.35415173]
[1743702426470,43.4963133,114.52,114.47,43.35415173]
[1743702426964,43.35415173,114.49,114.44,52.09235173]
[1743702427146,43.35415173,114.48,114.43,18.4878]
[1743702427352,43.4963133,114.49,114.44,43.35415173]
[1743702427763,43.35415173,114.48,114.44,43.35415173]
[1743702428142,0.14216157,114.49,114.45,43.35415173]
[1743702428558,43.35415173,114.5,114.45,43.35415173]
[1743702428866,8.7343,114.49,114.45,52.09155173]
[1743702429376,52.08795173,114.5,114.45,52.09155173]
[1743702429550,43.4963133,114.48,114.43,1.6492]
[1743702429756,43.4963133,114.48,114.43,45.00335173]
[1743702429954,43.35415173,114.47,114.43,1.6492]
[1743702430754,52.2321133,114.48,114.43,53.74215173]
[1743702431348,188.08885173,114.49,114.45,43.35415173]
[1743702431547,188.08885173,114.49,114.44,43.35415173]
[1743702431744,43.35415173,114.48,114.43,53.74215173]
[1743702431963,43.35415173,114.47,114.43,1.6492]
[1743702432146,43.35415173,114.47,114.43,10.3881]
[1743702432768,52.09055173,114.47,114.43,10.3881]
[1743702432949,52.09055173,114.47,114.43,1.6492]
[1743702433150,43.35415173,114.45,114.4,10.3648]
[1743702433351,43.35415173,114.44,114.4,10.3648]
[1743702434155,43.35415173,114.44,114.4,1.624]
[1743702434375,43.35415173,114.43,114.4,1.624]
[1743702434558,43.35415173,114.43,114.38,51.45415173]
[1743702434750,43.35415173,114.41,114.37,10.3695]
[1743702434950,43.35415173,114.41,114.32,94.60454739]
[1743702434951,0.14216157,114.37,114.32,13.40454739]
[1743702435263,43.4963133,114.37,114.32,52.10145173]
[1743702435447,43.35415173,114.37,114.33,43.35415173]
[1743702435650,43.35415173,114.37,114.32,52.10145173]
[1743702436868,43.35415173,114.36,114.32,43.35415173]
[1743702437067,43.35415173,114.35,114.3,10.3748]
[1743702437374,43.35415173,114.35,114.3,53.72895173]
[1743702437567,43.35415173,114.35,114.3,10.3748]
[1743702437770,43.35415173,114.34,114.3,53.72895173]
[1743702438273,43.35415173,114.35,114.3,53.72895173]
[1743702438470,43.35415173,114.35,114.31,43.35415173]
[1743702438675,43.35415173,114.37,114.32,43.35415173]
[1743702438867,52.09775173,114.37,114.33,8.7466]
[1743702439671,52.09775173,114.37,114.32,52.10105173]
[1743702440277,43.35415173,114.36,114.32,52.10105173]
[1743702440473,43.35415173,114.36,114.31,52.10215173]
[1743702440674,43.35415173,114.36,114.32,43.35415173]
[1743702441380,52.09775173,114.37,114.33,8.7466]
[1743702441858,52.09775173,114.37,114.32,52.10105173]
[1743702442058,43.35415173,114.36,114.32,8.7469]
[1743702443080,43.35415173,114.36,114.31,52.10195173]
[1743702443284,43.35415173,114.35,114.31,8.7478]
[1743702444461,52.09935173,114.35,114.31,8.7478]
[1743702444661,52.09935173,114.35,114.3,53.72895173]
[1743702444662,43.35415173,114.34,114.3,53.72895173]
[1743702444880,43.35415173,114.34,114.3,10.3748]
[1743702445081,43.35415173,114.34,114.3,53.72895173]
[1743702446480,52.09935173,114.35,114.3,53.72895173]
[1743702447386,179.35415173,114.36,114.31,43.35415173]
[1743702447763,163.13181892,114.36,114.31,27.13181892]
[1743702447967,171.87611892,114.36,114.31,27.13181892]
[1743702448786,27.13181892,114.35,114.31,27.13181892]
[1743702448987,27.13181892,114.36,114.31,27.13181892]
[1743702449175,27.13181892,114.36,114.32,8.7473]
[1743702449485,8.7416,114.4,114.34,27.13181892]
[1743702449795,15.3182,114.42,114.37,27.13181892]
[1743702450081,42.45001892,114.42,114.37,27.13181892]
[1743702450469,27.13181892,114.41,114.37,27.13181892]
[1743702450670,27.13181892,114.41,114.36,27.13181892]
[1743702451269,35.87231892,114.41,114.37,8.7435]
[1743702451771,52.11083523,114.41,114.36,52.11433523]
[1743702451964,43.37033523,114.4,114.36,52.11433523]
[1743702452483,43.37033523,114.39,114.35,8.745]
[1743702452697,43.37033523,114.39,114.34,66.79103523]
[1743702452698,43.37033523,114.38,114.34,53.67363523]
[1743702452864,43.37033523,114.37,114.34,8.7455]
[1743702453182,52.11433523,114.37,114.33,8.7463]
[1743702453393,43.37033523,114.36,114.33,8.7463]
[1743702453985,43.37033523,114.37,114.33,8.7463]
[1743702454183,188.2554968,114.38,114.33,52.11663523]
[1743702454491,43.5124968,114.36,114.31,44.89863523]
[1743702454782,43.37033523,114.35,114.31,10.2761]
[1743702455290,43.37033523,114.35,114.31,53.64643523]
[1743702455463,43.37033523,114.35,114.31,10.2761]
[1743702455880,52.11543523,114.35,114.31,10.2761]
[1743702456481,43.37033523,114.34,114.3,60.21893523]
[1743702456685,43.5124968,114.35,114.3,60.21893523]
[1743702457868,0.14216157,114.35,114.31,43.37033523]
[1743702458071,188.11493523,114.36,114.31,43.37033523]
[1743702458366,43.37033523,114.36,114.31,43.37033523]
[1743702458972,52.11463523,114.36,114.31,43.37033523]
[1743702459382,43.37033523,114.35,114.3,73.99113523]
[1743702460091,52.11553523,114.35,114.3,73.99113523]
[1743702460294,52.11553523,114.35,114.3,52.11893523]
[1743702461092,52.11553523,114.35,114.3,8.7486]
[1743702461093,43.37033523,114.34,114.3,8.7486]
[1743702461683,43.5124968,114.33,114.28,44.94083523]
[1743702461990,43.37033523,114.31,114.27,8.7509]
[1743702462191,43.37033523,114.3,114.25,343.0983]
[1743702462489,43.37033523,114.3,114.25,388.92443523]
[1743702462877,43.37033523,114.3,114.25,380.82443523]
[1743702463076,43.37033523,114.3,114.25,388.92443523]
[1743702463278,179.37033523,114.31,114.26,43.37033523]
[1743702463487,179.37033523,114.31,114.27,8.7512]
[1743702463875,188.11843523,114.31,114.27,8.7512]
[1743702464089,179.37033523,114.31,114.27,8.7512]
[1743702464781,136.0,114.31,114.27,70.77118409]
[1743702464979,136.0,114.31,114.27,73.99953523]
[1743702466196,136.0,114.31,114.28,43.37033523]
[1743702466576,43.5124968,114.34,114.3,43.37033523]
[1743702466771,136.0,114.36,114.32,43.37033523]
[1743702466984,136.0,114.36,114.31,1.5567]
[1743702467281,136.0,114.36,114.33,43.37033523]
[1743702467488,43.5124968,114.37,114.32,43.37033523]
[1743702467676,43.5124968,114.37,114.33,8.7466]
[1743702469998,43.37033523,114.37,114.33,8.7466]
[1743702470173,188.11313523,114.38,114.32,30.6157]
[1743702470379,43.37033523,114.37,114.32,52.11763523]
[1743702470578,43.37033523,114.36,114.32,52.11763523]
[1743702470880,43.37033523,114.35,114.32,8.7473]
[1743702471181,43.37033523,114.35,114.31,1.5567]
[1743702471182,43.37033523,114.34,114.31,8.7477]
[1743702471595,43.37033523,114.34,114.3,8.7489]
[1743702471977,43.5124968,114.35,114.3,52.11923523]
[1743702472298,43.37033523,114.35,114.31,43.37033523]
[1743702472979,52.11563523,114.35,114.3,52.11923523]
[1743702473179,43.37033523,114.34,114.3,8.7489]
[1743702473683,43.37033523,114.34,114.28,1.6587]
[1743702473684,43.37033523,114.32,114.28,1.6587]
[1743702473880,43.37033523,114.31,114.27,16.8508]
[1743702474200,52.11773523,114.32,114.27,60.22113523]
[1743702474607,43.37033523,114.31,114.27,60.22113523]
[1743702474900,43.37033523,114.31,114.27,16.8508]
[1743702475275,43.37033523,114.31,114.27,8.7508]
[1743702475891,52.11883523,114.31,114.26,52.12183523]
[1743702476091,43.37033523,114.3,114.26,52.12183523]
[1743702476300,43.37033523,114.31,114.27,43.37033523]
[1743702476506,43.37033523,114.31,114.26,8.7515]
[1743702476698,43.37033523,114.3,114.26,8.7515]
[1743702477201,43.37033523,114.29,114.25,337.6155]
[1743702477408,0.14216157,114.3,114.23,43.37033523]
[1743702477409,43.37033523,114.27,114.23,43.37033523]
[1743702477578,43.37033523,114.26,114.22,10.3603]
[1743702477783,43.37033523,114.25,114.21,8.7553]
[1743702477997,43.37033523,114.24,114.21,8.7553]
[1743702478301,43.37033523,114.24,114.2,8.7562]
[1743702479188,43.37033523,114.24,114.19,53.78843523]
[1743702479189,52.12403523,114.24,114.19,53.78843523]
[1743702479481,136.0,114.25,114.21,43.37033523]
[1743702479905,136.0,114.25,114.19,32.3114]
[1743702479906,136.0,114.25,114.22,43.37033523]
[1743702480106,136.0,114.25,114.23,43.37033523]
[1743702480487,43.37033523,114.28,114.23,43.37033523]
[1743702480802,43.5124968,114.29,114.24,43.37033523]
[1743702481213,43.5124968,114.29,114.25,8.7527]
[1743702481384,0.14216157,114.29,114.25,8.7527]
[1743702481580,0.14216157,114.29,114.25,52.12303523]
[1743702481886,43.5124968,114.29,114.25,8.7527]
[1743702482188,43.37033523,114.28,114.25,8.7527]
[1743702482593,43.5124968,114.29,114.25,8.7527]
[1743702483495,52.2621968,114.29,114.25,8.7527]
[1743702484097,43.37033523,114.27,114.23,8.754]
[1743702484508,43.37033523,114.26,114.23,8.754]
[1743702484706,43.37033523,114.25,114.2,43.37033523]
[1743702484887,43.37033523,114.25,114.2,51.47033523]
[1743702485089,43.37033523,114.24,114.2,16.8561]
[1743702485396,43.37033523,114.24,114.2,8.7561]
[1743702485806,144.7532,114.25,114.2,52.12643523]
[1743702486012,179.37033523,114.25,114.21,43.37033523]
[1743702486188,179.37033523,114.25,114.2,8.7561]
[1743702486189,188.12303523,114.25,114.2,8.7561]
[1743702486388,188.12303523,114.25,114.2,52.12643523]
[1743702486608,188.12303523,114.25,114.2,8.7561]
[1743702486805,43.37033523,114.23,114.18,43.37033523]
[1743702487110,43.37033523,114.2,114.16,1.5638]
[1743702487411,43.5124968,114.21,114.16,44.93413523]
[1743702487607,43.5124968,114.21,114.16,53.69333523]
[1743702487985,43.37033523,114.21,114.16,43.37033523]
[1743702488209,43.37033523,114.21,114.14,8.1]
[1743702488408,43.37033523,114.2,114.15,43.37033523]
[1743702488803,43.5124968,114.19,114.14,51.47033523]
[1743702488997,43.5124968,114.19,114.14,8.1]
[1743702489191,43.37033523,114.18,114.14,51.47033523]
[1743702489390,43.37033523,114.18,114.14,8.1]
[1743702489612,43.37033523,114.17,114.12,8.1]
[1743702489819,43.37033523,114.18,114.13,43.37033523]
[1743702489996,136.0,114.19,114.15,43.37033523]
[1743702490195,43.37033523,114.2,114.16,43.37033523]
[1743702490397,144.89836157,114.21,114.16,43.37033523]
[1743702490398,179.5124968,114.21,114.16,43.37033523]
[1743702490611,136.14216157,114.21,114.17,43.37033523]
[1743702490802,43.37033523,114.22,114.18,43.37033523]
[1743702491121,52.12553523,114.22,114.17,43.37033523]
[1743702491328,43.37033523,114.21,114.16,51.47033523]
[1743702491695,43.37033523,114.2,114.16,16.8591]
[1743702492320,43.37033523,114.21,114.16,60.22943523]
[1743702492502,0.14216157,114.2,114.16,16.8591]
[1743702492801,43.5124968,114.2,114.16,60.22943523]
[1743702493001,0.14216157,114.2,114.16,60.22943523]
[1743702493406,43.5124968,114.2,114.16,60.22943523]
[1743702493721,52.2690968,114.2,114.16,16.8591]
[1743702494011,43.5124968,114.2,114.16,60.22943523]
[1743702494315,0.14216157,114.2,114.16,60.22943523]
[1743702494693,43.37033523,114.21,114.16,60.22943523]
[1743702495004,43.37033523,114.21,114.17,43.37033523]
[1743702495199,43.5124968,114.21,114.16,60.22943523]
[1743702496005,43.5124968,114.21,114.16,30.6581]
[1743702496200,43.5124968,114.21,114.16,74.02843523]
[1743702497609,24.65334886,114.23,114.17,43.37033523]
[1743702497610,150.7582,114.23,114.17,43.37033523]
[1743702497793,52.2679968,114.22,114.15,18.64964886]
[1743702498315,43.37033523,114.19,114.14,52.13143523]
[1743702499394,43.5124968,114.2,114.15,43.37033523]
[1743702499595,43.5124968,114.2,114.16,43.37033523]
[1743702499815,43.5124968,114.2,114.17,8.7588]
[1743702500633,43.5124968,114.2,114.16,8.7596]
[1743702500924,52.2690968,114.2,114.16,8.7596]
[1743702501128,43.37033523,114.18,114.14,8.7607]
[1743702502623,52.12863523,114.18,114.13,52.13213523]
[1743702505248,43.37033523,114.16,114.13,8.7618]
[1743702506243,43.5124968,114.17,114.13,8.7618]
[1743702506644,179.37033523,114.18,114.13,52.13213523]
[1743702506851,136.0,114.18,114.15,43.37033523]
[1743702507212,136.0,114.18,114.15,8.7604]
[1743702508937,179.37033523,114.18,114.15,8.7604]
[1743702509247,188.12863523,114.18,114.14,8.7607]
[1743702509429,144.7583,114.18,114.14,8.7607]
[1743702509740,144.7583,114.18,114.14,52.13103523]
[1743702509939,188.12863523,114.18,114.13,52.13183523]
[1743702510107,52.12863523,114.18,114.14,43.37033523]
[1743702510451,43.37033523,114.18,114.14,43.37033523]
[1743702511347,43.37033523,114.18,114.15,8.7604]
[1743702511547,0.14216157,114.18,114.15,8.7604]
[1743702511841,43.5124968,114.18,114.11,49.32084886]
[1743702512131,43.5124968,114.18,114.13,43.37033523]
[1743702512534,43.37033523,114.17,114.11,38.7912]
[1743702512719,43.5124968,114.18,114.13,43.37033523]
[1743702513029,52.2711968,114.18,114.13,52.13173523]
[1743702513833,36.12006762,114.18,114.13,35.98060605]
[1743702514849,27.36136762,114.18,114.13,35.98060605]
[1743702515525,27.21920605,114.17,114.13,8.7614]
[1743702515737,27.21920605,114.17,114.1,28.76140605]
[1743702515738,27.21920605,114.15,114.1,28.76140605]
[1743702516660,35.97990605,114.15,114.11,8.7631]
[1743702518363,27.21920605,114.15,114.11,35.98230605]
[1743702518664,35.97920605,114.16,114.11,35.98230605]
[1743702519454,27.21920605,114.15,114.11,8.7631]
[1743702519656,27.21920605,114.15,114.11,35.98230605]
[1743702519951,35.97920605,114.16,114.11,35.98230605]
[1743702520370,0.14216157,114.15,114.11,35.98230605]
[1743702520670,27.36136762,114.15,114.11,35.98230605]
[1743702520960,0.14216157,114.15,114.11,35.98230605]
[1743702521163,0.14216157,114.16,114.12,35.98180605]
[1743702521978,163.21920605,114.17,114.13,27.21920605]
[1743702522171,28.7569,114.2,114.15,27.21920605]
[1743702522372,55.97610605,114.2,114.15,27.21920605]
[1743702522677,136.0,114.22,114.17,27.21920605]
[1743702522836,27.21920605,114.21,114.17,27.21920605]
[1743702523038,27.21920605,114.21,114.17,35.97760605]
[1743702523256,171.97460605,114.22,114.17,35.97780605]
[1743702523554,27.21920605,114.21,114.17,35.97780605]
[1743702523756,171.97460605,114.22,114.17,35.97780605]
[1743702524268,27.21920605,114.21,114.17,35.97780605]
[1743702524452,35.97520605,114.21,114.17,35.97780605]
[1743702524651,35.97520605,114.21,114.17,8.7586]
[1743702524854,35.97520605,114.21,114.16,35.97840605]
[1743702525589,27.21920605,114.18,114.13,21.9039]
[1743702525880,27.21920605,114.18,114.13,35.98110605]
[1743702526253,27.21920605,114.19,114.15,27.21920605]
[1743702526469,164.26216157,114.2,114.15,27.21920605]
[1743702526470,200.23836762,114.2,114.15,35.97890605]
[1743702528691,145.22041427,114.23,114.17,27.21920605]
[1743702528859,8.7542,114.23,114.19,27.21920605]
[1743702529058,35.97340605,114.23,114.19,27.21920605]
[1743702529255,35.97340605,114.23,114.18,27.21920605]
[1743702530397,172.11436762,114.25,114.2,27.21920605]
[1743702530686,0.14216157,114.24,114.2,27.21920605]
[1743702530889,36.11506762,114.24,114.19,35.97580605]
[1743702531065,36.11506762,114.24,114.19,8.7566]
[1743702531264,36.11506762,114.24,114.19,35.97580605]
[1743702532072,27.21920605,114.23,114.19,35.97580605]
[1743702532596,27.21920605,114.23,114.19,27.21920605]
[1743702532756,35.97400605,114.23,114.18,35.97680605]
[1743702533163,27.21920605,114.22,114.17,37.54270605]
[1743702533361,27.21920605,114.22,114.18,27.21920605]
[1743702534294,35.97430605,114.22,114.18,35.97710605]
[1743702535887,27.21920605,114.19,114.14,37.50180605]
[1743702537491,8.7581,114.18,114.14,37.50200605]
[1743702537683,8.7575,114.19,114.15,27.21920605]
[1743702537886,142.0622,114.22,114.17,27.21920605]
[1743702538181,35.97460605,114.22,114.17,27.21920605]
[1743702538387,35.97460605,114.22,114.18,27.21920605]
[1743702538889,35.97460605,114.22,114.17,27.21920605]
[1743702539283,27.21920605,114.2,114.14,23.4246]
[1743702539469,27.36136762,114.21,114.16,27.21920605]
[1743702539670,0.14216157,114.21,114.17,27.21920605]
[1743702540488,27.36136762,114.21,114.17,27.21920605]
[1743702540989,27.21920605,114.19,114.14,28.74090605]
[1743702541169,35.97740605,114.18,114.13,372.10060605]
[1743702541362,8.7582,114.18,114.14,27.21920605]
[1743702541567,35.97740605,114.18,114.14,27.21920605]
[1743702542686,35.97740605,114.18,114.13,336.7819]
[1743702542888,35.97740605,114.18,114.13,355.23920605]
[1743702543086,27.21920605,114.17,114.13,27.21920605]